Workbook

Sheet VSU
B1: Tiia Saarela | E1: 14.12.1999 Kuusankoski
B2: SUPERPESIS | E2: RUNKOSARJA | I2: Kärkilyönnit (KL), pesänvälit | Q2: Runkosarja | U2: Ylempi loppusarja | Z2: Alempi loppusarja | AG2: Arvo-ottelut ja mitalit
B3: Vuosi | C3: Sija | D3: Seura | E3: OTT | F3: KUN | G3: LÖI | H3: TOI | I3: KL | J3: 0 > 1 | K3: 1 > 2 | L3: 2 > 3 | M3: 3 > k | N3: KL-% | P3: LÖI | Q3: TOI | R3: L+T | S3: KL | U3: OTT | V3: KUN | W3: LÖI | X3: TOI | Y3: KL | Z3: OTT | AA3: KUN | AB3: LÖI | AC3: TOI | AD3: KL | AE3: IL | AF3: LL | AG3: Halli | AH3: K | AI3: H | AJ3: P
B4: 2014 | C4: 3. | D4: Puhti | F4: suomensarja
B5: 2015 | C5: 4. | D5: Puhti | F5: suomensarja
B6: 2016 | C6: 5. | D6: Puhti | F6: suomensarja
B7: 2017 | C7: 2. | D7: Puhti | F7: suomensarja
B8: 2018 | C8: 3. | D8: Puhti | F8: suomensarja
B9: 2019 | C9: 4. | D9: Puhti | F9: suomensarja
B10: 2020 | C10: 2. | D10: Puhti | F10: suomensarja
B11: 2021 | C11: 12. | D11: Pesä Ysit | E11: 22 | F11: 0 | G11: 4 | H11: 12 | I11: 70 | J11: 7 | K11: 46 | L11: 13 | M11: 4 | N11: 49.6 % | O11: 141 | Z11: 2 | AA11: 0 | AB11: 0 | AC11: 1 | AD11: 7
B12: 2022 | C12: 7. | D12: Pesä Ysit | F12: ykköspesis
B13: 2023 | C13: 5. | D13: Pesä Ysit | F13: ykköspesis
B14: Yhteensä | E14: =SUM(E4:E13) -> 22 | F14: 0 | G14: 4 | H14: 12 | I14: 70 | J14: 7 | K14: 46 | L14: 13 | M14: 4 | N14: =PRODUCT(I14/O14) -> 49.6 % | O14: =SUM(O4:O13) -> 141 | U14: =SUM(U4:U13) -> 0 | V14: 0 | W14: 0 | X14: 0 | Y14: 0 | Z14: 2 | AA14: 0 | AB14: 0 | AC14: 1 | AD14: 7 | AE14: 0 | AF14: 0 | AG14: 0 | AH14: 0 | AI14: 0 | AJ14: 0
B15: Pesispörssi | D15: =SUM(F14:H14)+((I14-F14-G14)/3)+(E14/3)+(AE14*25)+(AF14*25)+(AG14*10)+(AH14*25)+(AI14*20)+(AJ14*15) -> 45.3
B17: URA SUPERISSA | E17: OTT | F17: KUN | G17: LÖI | H17: TOI | I17: KL | K17: ka/L | L17: ka/T | M17: ka/KL | N17: K - % | P17: ENSIMMÄISET
B18: Runkosarja | E18: =PRODUCT(E14) -> 22 | F18: =PRODUCT(F14) -> 0 | G18: =PRODUCT(G14) -> 4 | H18: =PRODUCT(H14) -> 12 | I18: =PRODUCT(I14) -> 70 | K18: =PRODUCT((F18+G18)/E18) -> 0.18 | L18: =PRODUCT(H18/E18) -> 0.55 | M18: =PRODUCT(I18/E18) -> 3.18 | N18: =PRODUCT(N14) -> 49.6 % | O18: =PRODUCT(O14) -> 141 | P18: Ottelu | R18: 13.06. 2021 Roihu - Pesä Ysit 0-1 (1-2, 2-2) | AC18: 1. ottelu | AF18: 21 v 5 kk 30 pv
B19: Ylempi loppusarja | P19: Lyöty | R19: 19.06. 2021 Fera - Pesä Ysit 2-0 (9-0, 6-4) | AC19: 3. ottelu | AF19: 21 v 6 kk 5 pv
B20: Alempi loppusarja | E20: =PRODUCT(Z14) -> 2 | F20: =PRODUCT(AA14) -> 0 | G20: 0 | H20: 1 | I20: 7 | K20: =PRODUCT((F20+G20)/E20) -> 0.00 | L20: =PRODUCT(H20/E20) -> 0.50 | M20: =PRODUCT(I20/E20) -> 3.50 | N20: =PRODUCT(I20/O20) -> 53.8 % | O20: 13 | P20: Tuotu | R20: 30.06. 2021 SMJ - Pesä Ysit 2-1 (0-2, 5-1, 7-1) | AC20: 5. ottelu | AF20: 21 v 6 kk 16 pv
B21: KAIKKI | E21: =SUM(E18:E20) -> 24 | F21: =SUM(F18:F20) -> 0 | G21: =SUM(G18:G20) -> 4 | H21: =SUM(H18:H20) -> 13 | I21: =SUM(I18:I20) -> 77 | K21: =PRODUCT((F21+G21)/E21) -> 0.17 | L21: =PRODUCT(H21/E21) -> 0.54 | M21: =PRODUCT(I21/E21) -> 3.21 | N21: =PRODUCT(I21/O21) -> 50.0 % | O21: =SUM(O18:O20) -> 154 | P21: Kunnari
B23: Seurat | D23: Puhti = Kuusankosken Puhti (1910), kasvattajaseura
D24: Pesä Ysit (1976)
